[Event "Early-Titled-Tuesday-Blitz-September-26-2023"]
[Site "Chess.com"]
[Date "2023.09.26"]
[Round "10"]
[White "GradualismUnleashed"]
[Black "KorolDimitriy75"]
[Result "1-0"]
[WhiteElo "2590"]
[BlackElo "2409"]
[TimeControl "180+1"]
[EndTime "9:55:26 PDT"]
[Termination "GradualismUnleashed won on time"]

1. e4 {[%clk 0:02:54.9]} 1... c5 {[%clk 0:03:00]} 2. Nf3 {[%clk 0:02:54.3]} 2...
d6 {[%clk 0:03:00.4]} 3. d4 {[%clk 0:02:54.1]} 3... cxd4 {[%clk 0:03:01.3]} 4.
Nxd4 {[%clk 0:02:54.8]} 4... Nf6 {[%clk 0:03:02.2]} 5. Nc3 {[%clk 0:02:54.9]}
5... g6 {[%clk 0:03:02.8]} 6. Be3 {[%clk 0:02:54.9]} 6... Bg7 {[%clk 0:03:03.2]}
7. f3 {[%clk 0:02:55.5]} 7... O-O {[%clk 0:03:03.7]} 8. Qd2 {[%clk 0:02:56.1]}
8... Nc6 {[%clk 0:03:03.9]} 9. g4 {[%clk 0:02:56.7]} 9... Be6 {[%clk 0:03:03.4]}
10. Nxe6 {[%clk 0:02:56.4]} 10... fxe6 {[%clk 0:03:04.3]} 11. O-O-O {[%clk
0:02:56.6]} 11... Ne5 {[%clk 0:03:03.8]} 12. Be2 {[%clk 0:02:57]} 12... Qc8
{[%clk 0:03:04]} 13. h4 {[%clk 0:02:57.2]} 13... Nc4 {[%clk 0:03:03.9]} 14. Bxc4
{[%clk 0:02:53.9]} 14... Qxc4 {[%clk 0:03:04.8]} 15. h5 {[%clk 0:02:54.3]} 15...
Nd7 {[%clk 0:03:04.7]} 16. hxg6 {[%clk 0:02:49.5]} 16... hxg6 {[%clk 0:03:05.6]}
17. f4 {[%clk 0:02:47.4]} 17... Bxc3 {[%clk 0:03:05.2]} 18. bxc3 {[%clk
0:02:44.2]} 18... Rac8 {[%clk 0:03:04.5]} 19. Qh2 {[%clk 0:02:33.4]} 19... Kf7
{[%clk 0:03:03.1]} 20. Qh7+ {[%clk 0:02:32.7]} 20... Ke8 {[%clk 0:03:03.3]} 21.
Qxg6+ {[%clk 0:02:32.4]} 21... Kd8 {[%clk 0:03:03.6]} 22. e5 {[%clk 0:02:29.3]}
22... Rc6 {[%clk 0:01:32.6]} 23. exd6 {[%clk 0:02:11.9]} 23... exd6 {[%clk
0:01:32.2]} 24. Qg5+ {[%clk 0:02:10.6]} 24... Kc8 {[%clk 0:01:24.7]} 25. Qa5
{[%clk 0:02:10.2]} 25... Qxc3 {[%clk 0:01:01.7]} 26. Qxc3 {[%clk 0:02:06.2]}
26... Rxc3 {[%clk 0:01:02.6]} 27. Kd2 {[%clk 0:02:01.4]} 27... Rc4 {[%clk
0:00:45.7]} 28. g5 {[%clk 0:01:57.4]} 28... Nc5 {[%clk 0:00:24.9]} 29. g6 {[%clk
0:01:48.8]} 29... Ne4+ {[%clk 0:00:22.3]} 30. Kd3 {[%clk 0:01:48.9]} 30... d5
{[%clk 0:00:20.5]} 31. g7 {[%clk 0:01:42.1]} 31... Rg8 {[%clk 0:00:12.5]} 32.
Rh8 {[%clk 0:01:41.7]} 32... Nf6 {[%clk 0:00:10.1]} 33. Bd4 {[%clk 0:01:38.3]}
33... Rxd4+ {[%clk 0:00:08.6]} 34. Kxd4 {[%clk 0:01:38.2]} 34... Kd7 {[%clk
0:00:09.2]} 35. Rxg8 {[%clk 0:01:36.5]} 35... Nxg8 {[%clk 0:00:09.4]} 36. Ke5
{[%clk 0:01:36.7]} 36... Ke7 {[%clk 0:00:09]} 37. f5 {[%clk 0:01:34.9]} 37...
exf5 {[%clk 0:00:08]} 38. Rxd5 {[%clk 0:01:35]} 38... Nf6 {[%clk 0:00:06.2]} 39.
Kxf5 {[%clk 0:01:33.4]} 39... Kf7 {[%clk 0:00:04.8]} 40. Rd6 {[%clk 0:01:31.9]}
40... Ng8 {[%clk 0:00:04.2]} 41. Rd7+ {[%clk 0:01:32]} 41... Ke8 {[%clk
0:00:04.4]} 42. Rxb7 {[%clk 0:01:32.2]} 42... Nh6+ {[%clk 0:00:03.3]} 43. Ke6
{[%clk 0:01:32]} 43... Kd8 {[%clk 0:00:02.8]} 44. Rxa7 {[%clk 0:01:30.5]} 44...
Kc8 {[%clk 0:00:03.3]} 45. a4 {[%clk 0:01:29.4]} 45... Kb8 {[%clk 0:00:03.4]}
46. Rd7 {[%clk 0:01:28.8]} 46... Kc8 {[%clk 0:00:03.5]} 47. a5 {[%clk
0:01:28.7]} 47... Kb8 {[%clk 0:00:03.5]} 48. a6 {[%clk 0:01:29.1]} 48... Kc8
{[%clk 0:00:02.2]} 49. a7 {[%clk 0:01:27]} 1-0

[Event "Early-Titled-Tuesday-Blitz-September-26-2023"]
[Site "Chess.com"]
[Date "2023.09.26"]
[Round "10"]
[White "Arek_pacitan"]
[Black "Mikhail_Bryakin"]
[Result "0-1"]
[WhiteElo "2682"]
[BlackElo "2836"]
[TimeControl "180+1"]
[EndTime "9:55:31 PDT"]
[Termination "Mikhail_Bryakin won on time"]

1. d4 {[%clk 0:03:00.9]} 1... e6 {[%clk 0:02:46.4]} 2. Nf3 {[%clk 0:03:00.5]}
2... b6 {[%clk 0:02:46.2]} 3. g3 {[%clk 0:03:00.5]} 3... Bb7 {[%clk 0:02:46.3]}
4. Bg2 {[%clk 0:03:01.1]} 4... g6 {[%clk 0:02:46.6]} 5. O-O {[%clk 0:03:01.7]}
5... Bg7 {[%clk 0:02:47.2]} 6. c4 {[%clk 0:03:02.2]} 6... Ne7 {[%clk 0:02:47.7]}
7. Nc3 {[%clk 0:03:02.1]} 7... O-O {[%clk 0:02:48.3]} 8. e4 {[%clk 0:03:00.1]}
8... f5 {[%clk 0:02:45.7]} 9. e5 {[%clk 0:02:56.5]} 9... h6 {[%clk 0:02:46]} 10.
d5 {[%clk 0:02:52.4]} 10... g5 {[%clk 0:02:38.3]} 11. Nd4 {[%clk 0:02:20]} 11...
Bxe5 {[%clk 0:02:31.6]} 12. dxe6 {[%clk 0:01:54.3]} 12... Nbc6 {[%clk 0:02:27]}
13. Nxc6 {[%clk 0:01:45.8]} 13... Bxc6 {[%clk 0:02:24.4]} 14. Nd5 {[%clk
0:01:46]} 14... Bxd5 {[%clk 0:02:10.7]} 15. cxd5 {[%clk 0:01:46.9]} 15... dxe6
{[%clk 0:02:11.2]} 16. dxe6 {[%clk 0:01:40.8]} 16... Qxd1 {[%clk 0:02:11]} 17.
Rxd1 {[%clk 0:01:41.7]} 17... Rad8 {[%clk 0:02:11.2]} 18. Bd2 {[%clk 0:01:32]}
18... Bxb2 {[%clk 0:02:07.4]} 19. Rab1 {[%clk 0:01:32.2]} 19... Bf6 {[%clk
0:02:07]} 20. Be3 {[%clk 0:01:25.3]} 20... c5 {[%clk 0:02:04.2]} 21. a4 {[%clk
0:01:19.5]} 21... Bd4 {[%clk 0:01:55.1]} 22. Bxd4 {[%clk 0:01:17.7]} 22... Rxd4
{[%clk 0:01:56]} 23. Rxd4 {[%clk 0:01:13.1]} 23... cxd4 {[%clk 0:01:56.9]} 24.
a5 {[%clk 0:01:11]} 24... Rb8 {[%clk 0:01:54]} 25. Rd1 {[%clk 0:01:03.4]} 25...
Rd8 {[%clk 0:01:44.4]} 26. axb6 {[%clk 0:00:51.2]} 26... axb6 {[%clk 0:01:45.3]}
27. Bf1 {[%clk 0:00:51.6]} 27... Kg7 {[%clk 0:01:43.9]} 28. Bc4 {[%clk
0:00:49.1]} 28... Kf6 {[%clk 0:01:42.8]} 29. Kf1 {[%clk 0:00:49.7]} 29... Rd6
{[%clk 0:01:41]} 30. Ke2 {[%clk 0:00:47.2]} 30... Nc6 {[%clk 0:01:41.3]} 31. f4
{[%clk 0:00:39.7]} 31... Nd8 {[%clk 0:01:41.2]} 32. Kd3 {[%clk 0:00:27.6]} 32...
gxf4 {[%clk 0:01:39.6]} 33. gxf4 {[%clk 0:00:27]} 33... Nxe6 {[%clk 0:01:40.4]}
34. Bxe6 {[%clk 0:00:27.7]} 34... Rxe6 {[%clk 0:01:38.1]} 35. Rb1 {[%clk
0:00:27.9]} 35... Rd6 {[%clk 0:01:38.5]} 36. Rb5 {[%clk 0:00:26.3]} 36... Kg6
{[%clk 0:01:37]} 37. h3 {[%clk 0:00:25.4]} 37... Kf6 {[%clk 0:01:36.6]} 38. Rb4
{[%clk 0:00:23.3]} 38... Kg7 {[%clk 0:01:36.4]} 39. Rb5 {[%clk 0:00:23.5]} 39...
Kg6 {[%clk 0:01:37.1]} 40. Re5 {[%clk 0:00:22.4]} 40... Kh5 {[%clk 0:01:31.9]}
41. Rxf5+ {[%clk 0:00:21.7]} 41... Kh4 {[%clk 0:01:32.6]} 42. Rf8 {[%clk
0:00:21.1]} 42... Kxh3 {[%clk 0:01:32.5]} 43. f5 {[%clk 0:00:21.8]} 43... Kg4
{[%clk 0:01:29.1]} 44. f6 {[%clk 0:00:15]} 44... Kf5 {[%clk 0:01:29.2]} 45. f7
{[%clk 0:00:14.5]} 45... Kf6 {[%clk 0:01:27.2]} 46. Kd2 {[%clk 0:00:08.8]} 46...
Ke7 {[%clk 0:01:24.5]} 47. Rh8 {[%clk 0:00:01.1]} 47... Kxf7 {[%clk 0:01:24.6]}
0-1

[Event "Early-Titled-Tuesday-Blitz-September-26-2023"]
[Site "Chess.com"]
[Date "2023.09.26"]
[Round "10"]
[White "salomez"]
[Black "AsaHoffmann"]
[Result "0-1"]
[WhiteElo "2300"]
[BlackElo "2393"]
[TimeControl "180+1"]
[EndTime "9:55:33 PDT"]
[Termination "AsaHoffmann won by checkmate"]

1. e4 {[%clk 0:02:57.3]} 1... d6 {[%clk 0:02:57.6]} 2. d4 {[%clk 0:02:56.3]}
2... Nf6 {[%clk 0:02:57]} 3. Nc3 {[%clk 0:02:53.2]} 3... c6 {[%clk 0:02:56.8]}
4. Be2 {[%clk 0:02:45.4]} 4... Nbd7 {[%clk 0:02:55.5]} 5. Nf3 {[%clk 0:02:42.8]}
5... e5 {[%clk 0:02:55.4]} 6. O-O {[%clk 0:02:35.2]} 6... Be7 {[%clk 0:02:55.1]}
7. h3 {[%clk 0:02:27.8]} 7... b5 {[%clk 0:02:54.9]} 8. a3 {[%clk 0:02:27.1]}
8... a6 {[%clk 0:02:54.9]} 9. Be3 {[%clk 0:02:24.5]} 9... Bb7 {[%clk 0:02:54.7]}
10. Qd2 {[%clk 0:02:16.2]} 10... Qc7 {[%clk 0:02:54.1]} 11. Rfd1 {[%clk
0:02:14.8]} 11... O-O {[%clk 0:02:53.3]} 12. Bf1 {[%clk 0:02:10.5]} 12... Rfe8
{[%clk 0:02:53.1]} 13. g4 {[%clk 0:02:09.8]} 13... Bf8 {[%clk 0:02:51.9]} 14.
Bg2 {[%clk 0:02:08.8]} 14... Rad8 {[%clk 0:02:42.5]} 15. Nh2 {[%clk 0:02:04.6]}
15... h6 {[%clk 0:02:35.3]} 16. Nf1 {[%clk 0:02:02.1]} 16... Nb6 {[%clk
0:02:33.7]} 17. b3 {[%clk 0:01:58.8]} 17... c5 {[%clk 0:02:32.1]} 18. d5 {[%clk
0:01:56.8]} 18... c4 {[%clk 0:02:31.2]} 19. b4 {[%clk 0:01:50.7]} 19... Nbd7
{[%clk 0:02:23.1]} 20. Ng3 {[%clk 0:01:50.4]} 20... Bc8 {[%clk 0:02:18.7]} 21.
Nf5 {[%clk 0:01:50.1]} 21... Nb8 {[%clk 0:02:15.5]} 22. g5 {[%clk 0:01:32.8]}
22... hxg5 {[%clk 0:02:07.9]} 23. Bxg5 {[%clk 0:01:33.7]} 23... Be7 {[%clk
0:02:07.5]} 24. Ne2 {[%clk 0:01:12.8]} 24... Bxf5 {[%clk 0:02:06.7]} 25. exf5
{[%clk 0:01:12.4]} 25... Nh7 {[%clk 0:02:06]} 26. Be3 {[%clk 0:01:09.6]} 26...
Nd7 {[%clk 0:02:02.9]} 27. Ng3 {[%clk 0:01:07.8]} 27... Ndf6 {[%clk 0:02:01.4]}
28. a4 {[%clk 0:00:57.4]} 28... Ra8 {[%clk 0:01:59.7]} 29. c3 {[%clk 0:00:46.6]}
29... Qd7 {[%clk 0:01:58]} 30. Qc2 {[%clk 0:00:43.4]} 30... Bd8 {[%clk
0:01:55.2]} 31. Ra2 {[%clk 0:00:43.2]} 31... Rb8 {[%clk 0:01:50.6]} 32. Rda1
{[%clk 0:00:41.9]} 32... e4 {[%clk 0:01:47.5]} 33. axb5 {[%clk 0:00:41.7]} 33...
axb5 {[%clk 0:01:46.9]} 34. Ra7 {[%clk 0:00:41.7]} 34... Qc8 {[%clk 0:01:43.8]}
35. Nxe4 {[%clk 0:00:20.4]} 35... Qxf5 {[%clk 0:01:36.2]} 36. Nxf6+ {[%clk
0:00:20.4]} 36... Qxf6 {[%clk 0:01:35.9]} 37. Bd4 {[%clk 0:00:20.4]} 37... Qg5
{[%clk 0:01:26.8]} 38. Kh1 {[%clk 0:00:18.2]} 38... Bb6 {[%clk 0:01:25.9]} 39.
Bxb6 {[%clk 0:00:17.3]} 39... Rxb6 {[%clk 0:01:25.9]} 40. Rg1 {[%clk 0:00:17.1]}
40... g6 {[%clk 0:01:19.2]} 41. Be4 {[%clk 0:00:15.5]} 41... Qh6 {[%clk
0:01:15.9]} 42. Rg3 {[%clk 0:00:11.6]} 42... Nf8 {[%clk 0:01:13.3]} 43. Kg2
{[%clk 0:00:08]} 43... Rbb8 {[%clk 0:01:12.8]} 44. Bf3 {[%clk 0:00:07.3]} 44...
Ra8 {[%clk 0:01:12.4]} 45. Rxa8 {[%clk 0:00:06.6]} 45... Rxa8 {[%clk 0:01:12.1]}
46. Qe4 {[%clk 0:00:06.9]} 46... Ra1 {[%clk 0:01:10.9]} 47. Qe7 {[%clk
0:00:06.2]} 47... Qc1 {[%clk 0:01:09.8]} 48. Bg4 {[%clk 0:00:03.1]} 48... Qh1#
{[%clk 0:01:07.8]} 0-1

[Event "Early-Titled-Tuesday-Blitz-September-26-2023"]
[Site "Chess.com"]
[Date "2023.09.26"]
[Round "10"]
[White "sonicdravise"]
[Black "Flaccidmoves"]
[Result "1/2-1/2"]
[WhiteElo "2648"]
[BlackElo "2485"]
[TimeControl "180+1"]
[EndTime "9:55:41 PDT"]
[Termination "Game drawn by repetition"]

1. d4 {[%clk 0:03:00.9]} 1... Nf6 {[%clk 0:02:59.2]} 2. c4 {[%clk 0:03:01.5]}
2... g6 {[%clk 0:02:59.6]} 3. Nc3 {[%clk 0:03:02.1]} 3... d5 {[%clk 0:03:00.2]}
4. Nf3 {[%clk 0:03:01.3]} 4... Bg7 {[%clk 0:03:00]} 5. h4 {[%clk 0:03:02]} 5...
dxc4 {[%clk 0:02:51]} 6. e4 {[%clk 0:03:00.5]} 6... b5 {[%clk 0:02:38]} 7. h5
{[%clk 0:02:49.5]} 7... Nxh5 {[%clk 0:02:14.6]} 8. Nxb5 {[%clk 0:02:48.6]} 8...
Bb7 {[%clk 0:02:05.2]} 9. Bxc4 {[%clk 0:02:25.5]} 9... O-O {[%clk 0:01:47.1]}
10. Ng5 {[%clk 0:02:13]} 10... e6 {[%clk 0:01:28.7]} 11. Rxh5 {[%clk 0:02:02.5]}
11... gxh5 {[%clk 0:01:29.6]} 12. Qxh5 {[%clk 0:01:59.9]} 12... h6 {[%clk
0:01:29.1]} 13. Ke2 {[%clk 0:01:08.6]} 13... a6 {[%clk 0:01:18.6]} 14. Nxe6
{[%clk 0:00:48.4]} 14... fxe6 {[%clk 0:01:11.8]} 15. Bxe6+ {[%clk 0:00:48.2]}
15... Kh7 {[%clk 0:01:11.2]} 16. Bf5+ {[%clk 0:00:48.3]} 16... Kg8 {[%clk
0:01:05.5]} 17. Bxh6 {[%clk 0:00:39.5]} 17... Rxf5 {[%clk 0:00:20.3]} 18. Qxf5
{[%clk 0:00:37.7]} 18... Bxh6 {[%clk 0:00:14.8]} 19. Qe6+ {[%clk 0:00:14.5]}
19... Kh7 {[%clk 0:00:11]} 20. Qf7+ {[%clk 0:00:11.8]} 20... Kh8 {[%clk
0:00:09.2]} 21. Rh1 {[%clk 0:00:12]} 21... Qg5 {[%clk 0:00:08.8]} 22. Qf8+
{[%clk 0:00:10.4]} 22... Kh7 {[%clk 0:00:08.8]} 23. Qf7+ {[%clk 0:00:10.9]}
23... Kh8 {[%clk 0:00:09.1]} 24. Qf8+ {[%clk 0:00:05.9]} 24... Kh7 {[%clk
0:00:08.7]} 25. Qf7+ {[%clk 0:00:04.4]} 25... Kh8 {[%clk 0:00:08.8]} 1/2-1/2

[Event "Early-Titled-Tuesday-Blitz-September-26-2023"]
[Site "Chess.com"]
[Date "2023.09.26"]
[Round "10"]
[White "attack2mateU"]
[Black "Zavgorodniy_Sergiy"]
[Result "1-0"]
[WhiteElo "2746"]
[BlackElo "2595"]
[TimeControl "180+1"]
[EndTime "9:55:43 PDT"]
[Termination "attack2mateU won by resignation"]

1. e4 {[%clk 0:03:00.9]} 1... e5 {[%clk 0:02:53.6]} 2. Nf3 {[%clk 0:03:00.7]}
2... d6 {[%clk 0:02:50.7]} 3. d4 {[%clk 0:03:00.4]} 3... exd4 {[%clk 0:02:51.3]}
4. Nxd4 {[%clk 0:03:01.3]} 4... Nf6 {[%clk 0:02:48]} 5. Nc3 {[%clk 0:03:01.9]}
5... Be7 {[%clk 0:02:48]} 6. Bf4 {[%clk 0:03:02.6]} 6... O-O {[%clk 0:02:47.5]}
7. Qd2 {[%clk 0:03:03.3]} 7... Nc6 {[%clk 0:02:47.9]} 8. O-O-O {[%clk 0:03:03]}
8... Nxd4 {[%clk 0:02:48]} 9. Qxd4 {[%clk 0:03:03.9]} 9... Be6 {[%clk
0:02:48.1]} 10. Kb1 {[%clk 0:03:00.3]} 10... Nd7 {[%clk 0:02:46.7]} 11. Be2
{[%clk 0:02:58.7]} 11... Nb6 {[%clk 0:02:41.5]} 12. g4 {[%clk 0:02:49.5]} 12...
a5 {[%clk 0:02:39.8]} 13. h4 {[%clk 0:02:44.8]} 13... Bf6 {[%clk 0:02:35.1]} 14.
Qe3 {[%clk 0:02:44.4]} 14... Re8 {[%clk 0:02:09.7]} 15. g5 {[%clk 0:02:43.3]}
15... Bxc3 {[%clk 0:02:08.7]} 16. Qxc3 {[%clk 0:02:44.2]} 16... Qd7 {[%clk
0:02:01.5]} 17. f3 {[%clk 0:01:45]} 17... Qc6 {[%clk 0:01:39]} 18. Qd4 {[%clk
0:01:39.6]} 18... Nc4 {[%clk 0:01:28.8]} 19. h5 {[%clk 0:01:34.5]} 19... Qa4
{[%clk 0:01:17.6]} 20. b3 {[%clk 0:01:22.1]} 20... Na3+ {[%clk 0:00:56.1]} 21.
Kb2 {[%clk 0:01:22.2]} 21... Qxd4+ {[%clk 0:00:24.5]} 22. Rxd4 {[%clk
0:01:23.1]} 22... a4 {[%clk 0:00:24.8]} 23. Ra1 {[%clk 0:00:34.2]} 23... Nxc2
{[%clk 0:00:16.1]} 24. Kxc2 {[%clk 0:00:33.6]} 24... axb3+ {[%clk 0:00:16.8]}
25. Kb2 {[%clk 0:00:34.4]} 25... bxa2 {[%clk 0:00:16.9]} 26. Bc4 {[%clk
0:00:30.7]} 26... c5 {[%clk 0:00:16.4]} 27. Bxe6 {[%clk 0:00:24.7]} 27... cxd4
{[%clk 0:00:16.5]} 28. Bxa2 {[%clk 0:00:24.9]} 28... Rec8 {[%clk 0:00:08.3]} 29.
g6 {[%clk 0:00:23.3]} 29... hxg6 {[%clk 0:00:07.5]} 30. hxg6 {[%clk 0:00:22.1]}
30... Kf8 {[%clk 0:00:08]} 31. Bxd6+ {[%clk 0:00:21.5]} 31... Ke8 {[%clk
0:00:07.5]} 32. gxf7+ {[%clk 0:00:21.7]} 1-0

[Event "Early-Titled-Tuesday-Blitz-September-26-2023"]
[Site "Chess.com"]
[Date "2023.09.26"]
[Round "10"]
[White "Mystery2007"]
[Black "Defenstrator"]
[Result "0-1"]
[WhiteElo "2468"]
[BlackElo "2383"]
[TimeControl "180+1"]
[EndTime "9:55:45 PDT"]
[Termination "Defenstrator won on time"]

1. Nf3 {[%clk 0:03:00.9]} 1... Nc6 {[%clk 0:02:51.3]} 2. c4 {[%clk 0:03:01.3]}
2... e5 {[%clk 0:02:51.4]} 3. d3 {[%clk 0:03:00.6]} 3... Nf6 {[%clk 0:02:50.6]}
4. g3 {[%clk 0:02:59]} 4... d5 {[%clk 0:02:47.2]} 5. cxd5 {[%clk 0:02:58.3]}
5... Nxd5 {[%clk 0:02:48]} 6. Bg2 {[%clk 0:02:58.4]} 6... Be6 {[%clk 0:02:48.2]}
7. O-O {[%clk 0:02:58.9]} 7... f6 {[%clk 0:02:47]} 8. Nc3 {[%clk 0:02:58.4]}
8... Nb6 {[%clk 0:02:41.2]} 9. a3 {[%clk 0:02:40.4]} 9... Qd7 {[%clk 0:02:40.2]}
10. b4 {[%clk 0:02:40]} 10... O-O-O {[%clk 0:02:31.8]} 11. Be3 {[%clk 0:02:29]}
11... Bh3 {[%clk 0:02:26]} 12. Ne4 {[%clk 0:02:14.7]} 12... h5 {[%clk
0:02:22.5]} 13. b5 {[%clk 0:01:49.1]} 13... Nd4 {[%clk 0:02:12.9]} 14. Bxd4
{[%clk 0:01:21.8]} 14... exd4 {[%clk 0:02:10.1]} 15. a4 {[%clk 0:01:21.7]} 15...
h4 {[%clk 0:02:04.7]} 16. a5 {[%clk 0:01:21.1]} 16... Nd5 {[%clk 0:01:52.1]} 17.
b6 {[%clk 0:00:33.5]} 17... cxb6 {[%clk 0:01:29.8]} 18. axb6 {[%clk 0:00:34.4]}
18... a6 {[%clk 0:01:29.3]} 19. Re1 {[%clk 0:00:30.6]} 19... hxg3 {[%clk
0:01:26]} 20. fxg3 {[%clk 0:00:23.9]} 20... Bxg2 {[%clk 0:01:24.6]} 21. Qc1+
{[%clk 0:00:23.3]} 21... Kb8 {[%clk 0:01:23.3]} 22. Kxg2 {[%clk 0:00:22.7]}
22... Bb4 {[%clk 0:01:12.6]} 23. Rg1 {[%clk 0:00:17.8]} 23... Ne3+ {[%clk
0:01:06]} 24. Kh1 {[%clk 0:00:17.2]} 24... g5 {[%clk 0:00:57]} 25. Nc5 {[%clk
0:00:11.4]} 25... Qd5 {[%clk 0:00:51.9]} 26. Rxa6 {[%clk 0:00:05.1]} 26... Qxc5
{[%clk 0:00:36.2]} 27. Qa1 {[%clk 0:00:03.7]} 27... bxa6 {[%clk 0:00:33.1]} 28.
Qxa6 {[%clk 0:00:03.7]} 28... Rh7 {[%clk 0:00:29.6]} 29. Ra1 {[%clk 0:00:01.9]}
29... Ba3 {[%clk 0:00:23.3]} 30. Ra2 {[%clk 0:00:01.4]} 30... Qc1+ {[%clk
0:00:23]} 0-1

[Event "Early-Titled-Tuesday-Blitz-September-26-2023"]
[Site "Chess.com"]
[Date "2023.09.26"]
[Round "10"]
[White "EvgenyBurmakin"]
[Black "venturov"]
[Result "1/2-1/2"]
[WhiteElo "2332"]
[BlackElo "2460"]
[TimeControl "180+1"]
[EndTime "9:55:45 PDT"]
[Termination "Game drawn by repetition"]

1. e4 {[%clk 0:03:00.9]} 1... c5 {[%clk 0:02:54.7]} 2. Nc3 {[%clk 0:03:00.6]}
2... e6 {[%clk 0:02:53.9]} 3. Nf3 {[%clk 0:02:59.6]} 3... Nc6 {[%clk 0:02:53.4]}
4. d4 {[%clk 0:02:59.7]} 4... cxd4 {[%clk 0:02:54.2]} 5. Nxd4 {[%clk 0:02:59.9]}
5... Qc7 {[%clk 0:02:54.6]} 6. a3 {[%clk 0:02:58.7]} 6... a6 {[%clk 0:02:51.7]}
7. Be3 {[%clk 0:02:55.9]} 7... b5 {[%clk 0:02:49.8]} 8. Be2 {[%clk 0:02:48.5]}
8... Bb7 {[%clk 0:02:49.6]} 9. O-O {[%clk 0:02:47.5]} 9... Nf6 {[%clk
0:02:49.9]} 10. Nxc6 {[%clk 0:02:39.1]} 10... Bxc6 {[%clk 0:02:47]} 11. Bf3
{[%clk 0:02:34.2]} 11... Bd6 {[%clk 0:02:43.3]} 12. g3 {[%clk 0:02:31]} 12...
O-O {[%clk 0:02:39.4]} 13. Bg2 {[%clk 0:02:30.6]} 13... Be7 {[%clk 0:02:37.7]}
14. h3 {[%clk 0:02:27.5]} 14... Rfd8 {[%clk 0:02:36.8]} 15. f4 {[%clk
0:02:19.3]} 15... d5 {[%clk 0:02:30.5]} 16. e5 {[%clk 0:02:19]} 16... Ne4 {[%clk
0:02:30.7]} 17. Nxe4 {[%clk 0:02:09.5]} 17... dxe4 {[%clk 0:02:31.6]} 18. Qe2
{[%clk 0:02:08.7]} 18... Bd5 {[%clk 0:02:29.9]} 19. Rfd1 {[%clk 0:02:03.7]}
19... Rac8 {[%clk 0:02:29.1]} 20. Rac1 {[%clk 0:02:00.2]} 20... Bc5 {[%clk
0:02:26.8]} 21. Kh2 {[%clk 0:01:58.5]} 21... Bxe3 {[%clk 0:02:26.6]} 22. Qxe3
{[%clk 0:01:59.4]} 22... Qb7 {[%clk 0:02:23.2]} 23. Rd2 {[%clk 0:01:55.6]} 23...
a5 {[%clk 0:02:22.5]} 24. Rcd1 {[%clk 0:01:55.3]} 24... Re8 {[%clk 0:02:22.5]}
25. c3 {[%clk 0:01:51.6]} 25... Rc4 {[%clk 0:02:21.8]} 26. Rd4 {[%clk 0:01:51]}
26... Rec8 {[%clk 0:02:19.8]} 27. Bxe4 {[%clk 0:01:44.5]} 27... Rxd4 {[%clk
0:02:17.3]} 28. Qxd4 {[%clk 0:01:43.4]} 28... Rd8 {[%clk 0:01:50.1]} 29. b3
{[%clk 0:01:40.2]} 29... h5 {[%clk 0:01:16.7]} 30. c4 {[%clk 0:01:30.9]} 30...
bxc4 {[%clk 0:01:17.6]} 31. bxc4 {[%clk 0:01:31.1]} 31... Bxe4 {[%clk
0:01:17.6]} 32. Qxd8+ {[%clk 0:01:30.5]} 32... Kh7 {[%clk 0:01:18.1]} 33. Qd4
{[%clk 0:01:22.2]} 33... h4 {[%clk 0:01:10.7]} 34. gxh4 {[%clk 0:01:19.2]} 34...
Kh6 {[%clk 0:00:57.4]} 35. Rd2 {[%clk 0:01:18.2]} 35... Qb1 {[%clk 0:00:55.9]}
36. Rd1 {[%clk 0:01:11.2]} 36... Qc2+ {[%clk 0:00:53.6]} 37. Qd2 {[%clk
0:01:09.5]} 37... Qxc4 {[%clk 0:00:53.6]} 38. f5+ {[%clk 0:01:09.5]} 38... Kh7
{[%clk 0:00:53.7]} 39. f6 {[%clk 0:01:07.7]} 39... gxf6 {[%clk 0:00:51.1]} 40.
exf6 {[%clk 0:01:08.6]} 40... Qc7+ {[%clk 0:00:48.4]} 41. Qd6 {[%clk 0:01:04.5]}
41... Qc2+ {[%clk 0:00:48.8]} 42. Rd2 {[%clk 0:01:03.6]} 42... Qc1 {[%clk
0:00:41.4]} 43. Qd4 {[%clk 0:00:54.6]} 43... Qh1+ {[%clk 0:00:38.4]} 44. Kg3
{[%clk 0:00:55.1]} 44... Qf3+ {[%clk 0:00:27.8]} 45. Kh2 {[%clk 0:00:54.7]}
45... Qh1+ {[%clk 0:00:09.5]} 46. Kg3 {[%clk 0:00:54.9]} 46... Qf3+ {[%clk
0:00:08.7]} 47. Kh2 {[%clk 0:00:55.5]} 47... Qh1+ {[%clk 0:00:04.9]} 1/2-1/2